fUST/lending_fUST_20250619
["ID","MTS","AMOUNT","RATE_DAILY","PERIOD"]
[366481029,1750282232988,-473.56363254,0.00021917,6]
[366481030,1750282232997,-410.0,0.00021917,6]
[366481031,1750282233006,-460.0,0.00021917,6]
[366481032,1750282233016,-420.0,0.00021917,6]
[366481033,1750282233026,-460.0,0.00021917,6]
[366481034,1750282233035,-420.0,0.00021917,6]
[366481035,1750282233045,-400.0,0.00021917,6]
[366481036,1750282233055,-460.0,0.00021917,6]
[366481037,1750282233064,-411.31524347,0.00021917,6]
[366481038,1750282233074,-440.0,0.00021917,6]
[366481039,1750282233083,-420.0,0.00021917,6]
[366481040,1750282233092,-400.0,0.00021917,6]
[366481041,1750282233102,-191.8996673,0.00021917,6]
[366481042,1750282233112,-460.0,0.00021917,6]
[366481043,1750282233121,-460.0,0.00021917,6]
[366481044,1750282233131,-430.0,0.00021917,6]
[366481045,1750282233140,-460.0,0.00021917,6]
[366481046,1750282233150,-460.0,0.00021917,6]
[366481047,1750282233159,-440.0,0.00021917,6]
[366481048,1750282233169,-460.0,0.00021917,6]
[366481049,1750282233179,-460.0,0.00021917,6]
[366481050,1750282233188,-470.48619459,0.00021917,6]
[366481051,1750282233198,-460.0,0.00021917,6]
[366481052,1750282233207,-242.3195849,0.00021917,6]
[366481053,1750282233216,-495.21136589,0.00021917,6]
[366481054,1750282233226,-250.0,0.00021917,6]
[366481055,1750282233235,-440.0,0.00021917,6]
[366481056,1750282233244,-460.0,0.00021917,6]
[366481057,1750282233253,-460.0,0.00021917,6]
[366481058,1750282233262,-460.0,0.00021917,6]
[366481059,1750282233271,-460.0,0.00021917,6]
[366481060,1750282233281,-460.0,0.00021917,6]
[366481061,1750282233290,-460.0,0.00021917,6]
[366481062,1750282233299,-440.0,0.00021917,6]
[366481063,1750282233309,-460.0,0.00021917,6]
[366481064,1750282233318,-460.0,0.00021917,6]
[366481065,1750282233331,-460.0,0.00021917,6]
[366481066,1750282233340,-500.0,0.00021917,6]
[366481067,1750282233350,-634.07,0.00021917,6]
[366481068,1750282233359,-182.88,0.00021917,6]
[366481069,1750282233370,-527.74,0.00021917,6]
[366481070,1750282233379,-460.0,0.00021917,6]
[366481071,1750282233388,-460.0,0.00021917,6]
[366481072,1750282233400,-375.74198869,0.00021917,6]
[366481073,1750282233410,-460.0,0.00021917,6]
[366481074,1750282233419,-753.53,0.00021917,6]
[366481075,1750282233428,-410.0,0.00021917,6]
[366481076,1750282233438,-460.0,0.00021917,6]
[366481077,1750282233447,-440.0,0.00021917,6]
[366481078,1750282233456,-460.0,0.00021917,6]
[366481079,1750282233465,-460.0,0.00021917,6]
[366481080,1750282233475,-460.0,0.00021917,6]
[366481081,1750282233484,-460.0,0.00021917,6]
[366481082,1750282233493,-440.0,0.00021917,6]
[366481083,1750282233503,-460.0,0.00021917,6]
[366481084,1750282233512,-172.33142567,0.00021917,6]
[366481085,1750282233521,-460.0,0.00021917,6]
[366481086,1750282233531,-420.0,0.00021917,6]
[366481087,1750282233541,-460.0,0.00021917,6]
[366481088,1750282233551,-460.0,0.00021917,6]
[366481089,1750282233561,-718.27,0.00021917,6]
[366481090,1750282233570,-460.0,0.00021917,6]
[366481091,1750282233580,-460.0,0.00021917,6]
[366481092,1750282233590,-460.0,0.00021917,6]
[366481093,1750282233599,-460.0,0.00021917,6]
[366481094,1750282233609,-460.0,0.00021917,6]
[366481095,1750282233619,-460.0,0.00021917,6]
[366481096,1750282233629,-460.0,0.00021917,6]
[366481097,1750282233639,-460.0,0.00021917,6]
[366481098,1750282233650,-605.23495465,0.00021917,6]
[366481099,1750282233660,-460.0,0.00021917,6]
[366481100,1750282233670,-460.0,0.00021917,6]
[366481101,1750282233680,-460.0,0.00021917,6]
[366481102,1750282233689,-460.0,0.00021917,6]
[366481103,1750282233699,-460.0,0.00021917,6]
[366481104,1750282233709,-460.0,0.00021917,6]
[366481105,1750282233719,-460.0,0.00021917,6]
[366481106,1750282233729,-460.0,0.00021917,6]
[366481107,1750282233739,-460.0,0.00021917,6]
[366481108,1750282233748,-460.0,0.00021917,6]
[366481109,1750282233758,-460.0,0.00021917,6]
[366481110,1750282233767,-1293.8,0.00021917,6]
[366481111,1750282233776,-616.76,0.00021917,6]
[366481112,1750282233786,-575.96669964,0.00021917,6]
[366481113,1750282233795,-430.0,0.00021917,6]
[366481114,1750282233804,-460.0,0.00021917,6]
[366481115,1750282233815,-460.0,0.00021917,6]
[366481116,1750282233824,-460.0,0.00021917,6]
[366481117,1750282233833,-4062.24,0.00021917,6]
[366481118,1750282233843,-460.0,0.00021917,6]
[366481119,1750282233852,-518.23253495,0.00021917,6]
[366481120,1750282233862,-725.3,0.00021917,6]
[366481121,1750282233871,-460.0,0.00021917,6]
[366481122,1750282233881,-460.0,0.00021917,6]
[366481123,1750282233891,-460.0,0.00021917,6]
[366481124,1750282233900,-410.0,0.00021917,6]
[366481125,1750282233910,-3306.5,0.00021917,6]
[366481126,1750282233919,-875.66,0.00021917,6]
[366481127,1750282233928,-460.0,0.00021917,6]
[366481128,1750282233937,-460.0,0.00021917,6]
[366481129,1750282233946,-303.971835,0.00021917,6]
[366481130,1750282233956,-948.47,0.00021917,6]
[366481131,1750282233966,-460.0,0.00021917,6]
[366481132,1750282233975,-460.0,0.00021917,6]
[366481133,1750282233984,-460.0,0.00021917,6]
[366481134,1750282233993,-460.0,0.00021917,6]
[366481135,1750282234002,-460.0,0.00021917,6]
[366481136,1750282234011,-460.0,0.00021917,6]
[366481137,1750282234022,-492.7,0.00021917,6]
[366481138,1750282234031,-420.0,0.00021917,6]
[366481139,1750282234040,-460.0,0.00021917,6]
[366481140,1750282234049,-460.0,0.00021917,6]
[366481141,1750282234058,-734.8,0.00021917,6]
[366481142,1750282234067,-460.0,0.00021917,6]
[366481143,1750282234077,-460.0,0.00021917,6]
[366481144,1750282234087,-460.0,0.00021917,6]
[366481145,1750282234097,-4375.89,0.00021917,6]
[366481146,1750282234107,-460.0,0.00021917,6]
[366481147,1750282234116,-460.0,0.00021917,6]
[366481148,1750282234126,-460.0,0.00021917,6]
[366481149,1750282234135,-460.0,0.00021917,6]
[366481150,1750282234144,-460.0,0.00021917,6]
[366481151,1750282234154,-460.0,0.00021917,6]
[366481152,1750282234163,-410.0,0.00021917,6]
[366481153,1750282234172,-4111.9,0.00021917,6]
[366481154,1750282234182,-460.0,0.00021917,6]
[366481155,1750282234191,-460.0,0.00021917,6]
[366481156,1750282234200,-460.0,0.00021917,6]
[366481157,1750282234210,-501.30212675,0.00021917,6]
[366481158,1750282234219,-500.0,0.00021917,6]
[366481159,1750282234229,-846.78,0.00021917,6]
[366481160,1750282234238,-500.0,0.00021917,6]
[366481161,1750282234247,-500.0,0.00021917,6]
[366481162,1750282234257,-500.0,0.00021917,6]
[366481163,1750282234266,-500.0,0.00021917,6]
[366481164,1750282234276,-500.0,0.00021917,6]
[366481165,1750282234285,-460.0,0.00021917,6]
[366481166,1750282234295,-265.41635084,0.00021917,6]
[366481167,1750282234304,-1793.91,0.00021917,6]
[366481168,1750282234314,-460.0,0.00021917,6]
[366481169,1750282234326,-2448.44,0.00021917,6]
[366481170,1750282234336,-782.59,0.00021917,6]
[366481171,1750282234345,-500.0,0.00021917,6]
[366481172,1750282234354,-610.21,0.00021917,6]
[366481173,1750282234365,-460.0,0.00021917,6]
[366481174,1750282234374,-3378.4,0.00021917,6]
[366481175,1750282234383,-460.0,0.00021917,6]
[366481176,1750282234393,-460.0,0.00021917,6]
[366481177,1750282234405,-460.0,0.00021917,6]
[366481178,1750282234414,-460.0,0.00021917,6]
[366481179,1750282234424,-420.0,0.00021917,6]
[366481180,1750282234434,-1409.21,0.00021917,6]
[366481181,1750282234444,-460.0,0.00021917,6]
[366481182,1750282234453,-460.0,0.00021917,6]
[366481183,1750282234462,-430.0,0.00021917,6]
[366481184,1750282234471,-460.0,0.00021917,6]
[366481185,1750282234481,-766.64,0.00021917,6]
[366481186,1750282234490,-460.0,0.00021917,6]
[366481187,1750282234500,-460.0,0.00021917,6]
[366481188,1750282234509,-460.0,0.00021917,6]
[366481189,1750282234519,-460.0,0.00021917,6]
[366481190,1750282234528,-460.0,0.00021917,6]
[366481191,1750282234538,-398.20765129,0.00021917,6]
[366481192,1750282234547,-460.0,0.00021917,6]
[366481193,1750282234556,-460.0,0.00021917,6]
[366481194,1750282234565,-789.31,0.00021917,6]
[366481195,1750282234575,-460.0,0.00021917,6]
[366481196,1750282234584,-1460.02,0.00021917,6]
[366481197,1750282234593,-464.29,0.00021917,6]
[366481198,1750282234604,-460.0,0.00021917,6]
[366481199,1750282234615,-460.0,0.00021917,6]
[366481200,1750282234624,-460.0,0.00021917,6]
[366481201,1750282234634,-460.0,0.00021917,6]
[366481202,1750282234644,-460.0,0.00021917,6]
[366481203,1750282234654,-463.21,0.00021917,6]
[366481204,1750282234664,-1095.89,0.00021917,6]
[366481205,1750282234674,-1504.38,0.00021917,6]
[366481206,1750282234684,-460.0,0.00021917,6]
[366481207,1750282234693,-460.0,0.00021917,6]
[366481208,1750282234703,-460.0,0.00021917,6]
[366481209,1750282234713,-460.0,0.00021917,6]
[366481210,1750282234723,-460.0,0.00021917,6]
[366481211,1750282234732,-1701.83,0.00021917,6]
[366481212,1750282234742,-460.0,0.00021917,6]
[366481213,1750282234752,-694.76,0.00021917,6]
[366481214,1750282234761,-513.06,0.00021917,6]
[366481215,1750282234770,-267.03578636,0.00021917,6]
[366481216,1750282234780,-460.0,0.00021917,6]
[366481217,1750282234790,-460.0,0.00021917,6]
[366481218,1750282234800,-460.0,0.00021917,6]
[366481219,1750282234809,-624.32,0.00021917,6]
[366481220,1750282234820,-460.0,0.00021917,6]
[366481221,1750282234830,-460.0,0.00021917,6]
[366481222,1750282234839,-173.27911492,0.00021917,6]
[366481223,1750282234849,-460.0,0.00021917,6]
[366481224,1750282234858,-164.11083351,0.00021917,6]
[366481225,1750282234868,-460.0,0.00021917,6]
[366481226,1750282234877,-280.0,0.00021917,6]
[366481227,1750282234886,-635.9,0.00021917,6]
[366481228,1750282234896,-460.0,0.00021917,6]
[366481229,1750282234906,-460.0,0.00021917,6]
[366481230,1750282234915,-460.0,0.00021917,6]
[366481231,1750282234925,-240.96340995,0.00021917,6]
[366481232,1750282234934,-2273.06,0.00021917,6]
[366481233,1750282234943,-400.0,0.00021917,6]
[366481234,1750282234953,-460.0,0.00021917,6]
[366481235,1750282234963,-460.0,0.00021917,6]
[366481236,1750282234972,-460.0,0.00021917,6]
[366481237,1750282234982,-460.0,0.00021917,6]
[366481238,1750282234992,-460.0,0.00021917,6]
[366481239,1750282235001,-460.0,0.00021917,6]
[366481240,1750282235011,-460.0,0.00021917,6]
[366481241,1750282235020,-460.0,0.00021917,6]
[366481242,1750282235029,-460.0,0.00021917,6]
[366481243,1750282235039,-590.18,0.00021917,6]
[366481244,1750282235155,-460.0,0.00021917,6]
[366481245,1750282235165,-1186.53,0.00021917,6]
[366481246,1750282235175,-541.68,0.00021917,6]
[366481247,1750282235185,-400.82147598,0.00021917,6]
[366481248,1750282235194,-460.0,0.00021917,6]
[366481249,1750282235204,-460.0,0.00021917,6]
[366481250,1750282235214,-460.0,0.00021917,6]
[366481251,1750282235223,-460.0,0.00021917,6]
[366481252,1750282235232,-1782.14,0.00021917,6]
[366481253,1750282235242,-506.1688868,0.00021917,6]
[366481254,1750282235251,-460.0,0.00021917,6]
[366481255,1750282235262,-460.0,0.00021917,6]
[366481256,1750282235271,-460.0,0.00021917,6]
[366481257,1750282235281,-306.75854565,0.00021917,6]
[366481258,1750282235290,-460.0,0.00021917,6]
[366481259,1750282235304,-1532.02921713,0.00021917,6]
[366481260,1750282235446,-863.00078287,0.00021917,6]
[366481261,1750282235456,-460.0,0.00021917,6]
[366481262,1750282235465,-1898.95,0.00021917,6]
[366481263,1750282235475,-460.0,0.00021917,6]
[366481264,1750282235484,-340.0,0.00021917,6]
[366481265,1750282235493,-782.87,0.00021917,6]
[366481266,1750282235503,-370.0,0.00021917,6]
[366481267,1750282235512,-460.0,0.00021917,2]
[366481268,1750282235521,-460.0,0.00021917,6]
[366481269,1750282235531,-460.0,0.00021917,6]
[366481270,1750282235540,-460.0,0.00021917,6]
[366481271,1750282235550,-460.0,0.00021917,6]
[366481272,1750282235560,-1463.28359729,0.00021934,6]
[366481273,1750282235569,-500.0,0.00021973,2]
[366481274,1750282235579,-500.38178413,0.00021973,2]
[366481275,1750282235590,-502.45172187,0.00021973,2]
[366481276,1750282235600,-500.0,0.00021973,2]
[366481277,1750282235610,-354.3008366,0.00021973,2]
[366481278,1750282235619,-1148.4306086,0.00021973,2]
[366481279,1750282235629,-2100.0593844,0.00022,7]
[366481280,1750282235640,-2271.202931,0.00022,7]
[366481281,1750282235653,-528.81311053,0.00022,7]
[366481290,1750282237602,-290.96987757,0.00021917,6]
[366481291,1750282237611,-527.67448694,0.00021917,6]
[366481292,1750282237660,-5291.13551306,0.00021917,6]
[366481293,1750282237670,-3513.86448694,0.00022,7]
[366481294,1750282237682,-3194.75259197,0.00022,7]
[366481295,1750282237693,-1500.58988188,0.00022,7]
[366481296,1750282237722,-54226.13761328,0.00022,7]
[366481297,1750282237732,-165.0,0.00022,2]
[366481298,1750282237741,-1463.28359729,0.00022107,6]
[366481299,1750282237751,-468.05002665,0.0002216,2]
[366481300,1750282237761,-502.6969176,0.00022173,2]
[366481301,1750282237770,-500.0,0.00022173,2]
[366481302,1750282237780,-500.0,0.00022173,2]
[366481303,1750282237790,-500.0,0.00022173,2]
[366481304,1750282237799,-201.86789802,0.00022173,2]
[366481305,1750282237808,-500.0,0.00022173,2]
[366481307,1750282237818,-500.0,0.00022173,2]
[366481308,1750282237827,-573.8401486,0.00022173,2]
[366481309,1750282237837,-513.99793096,0.00022173,2]
[366481310,1750282237847,-500.94760593,0.00022173,2]
[366481311,1750282237856,-500.0,0.00022173,2]
[366481312,1750282237866,-500.0,0.00022173,2]
[366481313,1750282237875,-500.0,0.00022173,2]
[366481314,1750282237885,-600.0,0.00022173,2]
[366481315,1750282237894,-500.0,0.0002219,6]
[366481316,1750282237903,-460.0,0.00022191,6]
[366481317,1750282237913,-460.0,0.00022191,6]
[366481318,1750282237922,-460.0,0.00022191,6]
[366481319,1750282237932,-460.0,0.00022191,6]
[366481320,1750282237942,-233.24355523,0.00022191,6]
[366481321,1750282237951,-363.61788861,0.00022191,6]
[366481322,1750282237960,-460.0,0.00022191,6]
[366481323,1750282237970,-460.0,0.00022191,6]
[366481324,1750282237979,-400.0,0.00022191,6]
[366481325,1750282237989,-386.28705695,0.00022191,6]
[366481326,1750282237998,-460.0,0.00022191,6]
[366481327,1750282238007,-460.0,0.00022191,6]
[366481328,1750282238016,-430.0,0.00022191,6]
[366481329,1750282238026,-460.0,0.00022191,6]
[366481330,1750282238035,-460.0,0.00022191,6]
[366481331,1750282238045,-420.0,0.00022191,6]
[366481332,1750282238055,-460.0,0.00022191,6]
[366481333,1750282238064,-460.0,0.00022191,6]
[366481334,1750282238074,-460.0,0.00022191,6]
[366481335,1750282238084,-460.0,0.00022191,6]
[366481336,1750282238094,-460.0,0.00022191,6]
[366481337,1750282238104,-460.0,0.00022191,6]
[366481338,1750282238113,-460.0,0.00022191,6]
[366481339,1750282238123,-154.13313598,0.00022191,6]
[366481340,1750282238133,-460.0,0.00022191,6]
[366481341,1750282238143,-460.0,0.00022191,6]
[366481342,1750282238153,-460.0,0.00022191,6]
[366481343,1750282238163,-500.0,0.00022191,6]
[366481344,1750282238172,-634.07,0.00022191,6]
[366481345,1750282238182,-527.74,0.00022191,6]
[366481346,1750282238191,-350.0,0.00022191,6]
[366481347,1750282238200,-460.0,0.00022191,6]
[366481348,1750282238209,-400.0,0.00022191,6]
[366481349,1750282238220,-753.53,0.00022191,6]
[366481350,1750282238230,-460.0,0.00022191,6]
[366481351,1750282238240,-460.0,0.00022191,6]
[366481352,1750282238250,-460.0,0.00022191,6]
[366481353,1750282238259,-460.0,0.00022191,6]
[366481354,1750282238269,-460.0,0.00022191,6]
[366481355,1750282238279,-460.0,0.00022191,6]
[366481356,1750282238288,-460.0,0.00022191,6]
[366481357,1750282238298,-250.0,0.00022191,6]
[366481358,1750282238307,-460.0,0.00022191,6]
[366481359,1750282238316,-718.27,0.00022191,6]
[366481360,1750282238330,-472.03175633,0.00022191,6]
[366481361,1750282238340,-460.0,0.00022191,6]
[366481362,1750282238350,-460.0,0.00022191,6]
[366481363,1750282238359,-460.0,0.00022191,6]
[366481364,1750282238369,-460.0,0.00022191,6]
[366481365,1750282238379,-460.0,0.00022191,6]
[366481366,1750282238388,-460.0,0.00022191,6]
[366481367,1750282238397,-460.0,0.00022191,6]
[366481368,1750282238407,-460.0,0.00022191,6]
[366481369,1750282238417,-460.0,0.00022191,6]
[366481370,1750282238426,-460.0,0.00022191,6]
[366481371,1750282238436,-460.0,0.00022191,6]
[366481372,1750282238445,-460.0,0.00022191,6]
[366481373,1750282238455,-460.0,0.00022191,6]
[366481374,1750282238464,-460.0,0.00022191,6]
[366481375,1750282238474,-460.0,0.00022191,6]
[366481376,1750282238483,-460.0,0.00022191,6]
[366481377,1750282238492,-460.0,0.00022191,6]
[366481378,1750282238501,-460.0,0.00022191,6]
[366481379,1750282238511,-1293.8,0.00022191,6]
[366481380,1750282238520,-616.76,0.00022191,6]
[366481381,1750282238530,-460.0,0.00022191,6]
[366481382,1750282238539,-460.0,0.00022191,6]
[366481383,1750282238549,-4062.24,0.00022191,6]
[366481384,1750282238558,-460.0,0.00022191,6]
[366481385,1750282238568,-725.3,0.00022191,6]
[366481386,1750282238578,-460.0,0.00022191,6]
[366481387,1750282238587,-460.0,0.00022191,6]
[366481388,1750282238597,-460.0,0.00022191,6]
[366481389,1750282238607,-3306.5,0.00022191,6]
[366481390,1750282238617,-875.66,0.00022191,6]
[366481391,1750282238626,-460.0,0.00022191,6]
[366481392,1750282238635,-460.0,0.00022191,6]
[366481393,1750282238645,-948.47,0.00022191,6]
[366481394,1750282238655,-460.0,0.00022191,6]
[366481395,1750282238664,-460.0,0.00022191,6]
[366481396,1750282238673,-460.0,0.00022191,6]
[366481397,1750282238682,-460.0,0.00022191,6]
[366481398,1750282238692,-460.0,0.00022191,6]
[366481399,1750282238701,-460.0,0.00022191,6]
[366481400,1750282238711,-492.7,0.00022191,6]
[366481401,1750282238721,-460.0,0.00022191,6]
[366481402,1750282238731,-460.0,0.00022191,6]
[366481403,1750282238739,-734.8,0.00022191,6]
[366481404,1750282238749,-460.0,0.00022191,6]
[366481405,1750282238758,-440.0,0.00022191,6]
[366481406,1750282238768,-310.0,0.00022191,6]
[366481407,1750282238778,-4375.89,0.00022191,6]
[366481408,1750282238787,-460.0,0.00022191,6]
[366481409,1750282238796,-460.0,0.00022191,6]
[366481410,1750282238805,-460.0,0.00022191,6]
[366481411,1750282238815,-460.0,0.00022191,6]
[366481412,1750282238824,-460.0,0.00022191,6]
[366481413,1750282238833,-394.79178926,0.00022191,6]
[366481414,1750282238844,-4111.9,0.00022191,6]
[366481415,1750282238853,-460.0,0.00022191,6]
[366481416,1750282238862,-460.0,0.00022191,6]
[366481417,1750282238871,-370.0,0.00022191,6]
[366481418,1750282238880,-846.78,0.00022191,6]
[366481419,1750282238889,-460.0,0.00022191,6]
[366481420,1750282238898,-1793.91,0.00022191,6]
[366481421,1750282238907,-460.0,0.00022191,6]
[366481422,1750282238916,-2448.44,0.00022191,6]
[366481423,1750282238925,-782.59,0.00022191,6]
[366481424,1750282238934,-500.0,0.00022191,6]
[366481425,1750282238943,-610.21,0.00022191,6]
[366481426,1750282238952,-460.0,0.00022191,6]
[366481427,1750282238961,-3378.4,0.00022191,6]
[366481428,1750282238971,-460.0,0.00022191,6]
[366481429,1750282238980,-460.0,0.00022191,6]
[366481430,1750282238989,-460.0,0.00022191,6]
[366481431,1750282238998,-460.0,0.00022191,6]
[366481432,1750282239007,-1409.21,0.00022191,6]
[366481433,1750282239017,-460.0,0.00022191,6]
[366481434,1750282239026,-460.0,0.00022191,6]
[366481435,1750282239036,-460.0,0.00022191,6]
[366481436,1750282239045,-766.64,0.00022191,6]
[366481437,1750282239055,-460.0,0.00022191,6]
[366481438,1750282239064,-460.0,0.00022191,6]
[366481439,1750282239073,-460.0,0.00022191,6]
[366481440,1750282239083,-460.0,0.00022191,6]
[366481441,1750282239092,-460.0,0.00022191,6]
[366481442,1750282239102,-460.0,0.00022191,6]
[366481443,1750282239112,-460.0,0.00022191,6]
[366481444,1750282239121,-789.31,0.00022191,6]
[366481445,1750282239131,-460.0,0.00022191,6]
[366481446,1750282239140,-1460.02,0.00022191,6]
[366481447,1750282239150,-464.29,0.00022191,6]
[366481448,1750282239159,-460.0,0.00022191,6]
[366481449,1750282239285,-460.0,0.00022191,6]
[366481450,1750282239295,-460.0,0.00022191,6]
[366481451,1750282239304,-460.0,0.00022191,6]
[366481452,1750282239314,-460.0,0.00022191,6]
[366481453,1750282239327,-463.21,0.00022191,6]
[366481454,1750282239336,-1095.89,0.00022191,6]
[366481455,1750282239346,-1504.38,0.00022191,6]
[366481456,1750282239355,-460.0,0.00022191,6]
[366481457,1750282239367,-460.0,0.00022191,6]
[366481458,1750282239376,-460.0,0.00022191,6]
[366481459,1750282239385,-460.0,0.00022191,6]
[366481460,1750282239394,-460.0,0.00022191,6]
[366481461,1750282239404,-1701.83,0.00022191,6]
[366481462,1750282239413,-460.0,0.00022191,6]
[366481464,1750282239422,-694.76,0.00022191,6]
[366481465,1750282239431,-513.06,0.00022191,6]
[366481466,1750282239441,-460.0,0.00022191,6]
[366481467,1750282239450,-460.0,0.00022191,6]
[366481469,1750282239459,-460.0,0.00022191,6]
[366481470,1750282239468,-624.32,0.00022191,6]
[366481472,1750282239478,-460.0,0.00022191,6]
[366481473,1750282239488,-460.0,0.00022191,6]
[366481474,1750282239497,-460.0,0.00022191,6]
[366481475,1750282239506,-460.0,0.00022191,6]
[366481476,1750282239516,-635.9,0.00022191,6]
[366481477,1750282239525,-370.0,0.00022191,6]
[366481478,1750282239534,-460.0,0.00022191,6]
[366481479,1750282239544,-460.0,0.00022191,6]
[366481480,1750282239553,-2273.06,0.00022191,6]
[366481481,1750282239563,-460.0,0.00022191,6]
[366481482,1750282239572,-460.0,0.00022191,6]
[366481483,1750282239582,-460.0,0.00022191,6]
[366481484,1750282239592,-460.0,0.00022191,6]
[366481485,1750282239601,-460.0,0.00022191,6]
[366481486,1750282239610,-460.0,0.00022191,6]
[366481488,1750282239620,-460.0,0.00022191,6]
[366481489,1750282239629,-460.0,0.00022191,6]
[366481490,1750282239638,-460.0,0.00022191,6]
[366481491,1750282239647,-590.18,0.00022191,6]
[366481492,1750282239656,-230.0,0.00022191,6]
[366481493,1750282239665,-1186.53,0.00022191,6]
[366481494,1750282239675,-541.68,0.00022191,6]
[366481495,1750282239684,-460.0,0.00022191,6]
[366481496,1750282239693,-460.0,0.00022191,6]
[366481497,1750282239703,-421.3213603,0.00022191,6]
[366481499,1750282239712,-160.0,0.00022191,6]
[366481501,1750282239721,-1782.14,0.00022191,6]
[366481502,1750282239731,-460.0,0.00022191,6]
[366481503,1750282239740,-460.0,0.00022191,6]
[366481504,1750282239749,-460.0,0.00022191,6]
[366481505,1750282239758,-460.0,0.00022191,6]
[366481506,1750282239767,-2395.03,0.00022191,6]
[366481507,1750282239776,-294.41680277,0.00022191,6]
[366481508,1750282239786,-1898.95,0.00022191,6]
[366481509,1750282239795,-460.0,0.00022191,6]
[366481510,1750282239805,-782.87,0.00022191,6]
[366481511,1750282239815,-460.0,0.00022191,2]
[366481512,1750282239825,-253.31274331,0.00022191,6]
[366481513,1750282239834,-460.0,0.00022191,6]
[366481514,1750282239844,-460.0,0.00022191,6]
[366481515,1750282239853,-460.0,0.00022191,6]
[366481516,1750282239864,-5818.81,0.00022191,6]
[366481517,1750282239873,-1463.28359729,0.00022279,6]
[366481518,1750282239883,-5000.0,0.00022336,2]
[366481519,1750282239892,-299.56773809,0.00022373,2]
[366481520,1750282239901,-500.0,0.00022373,2]
[366481521,1750282239911,-1463.28359729,0.00022452,7]
[366481522,1750282239920,-500.0,0.00022464,3]
[366481523,1750282239929,-460.0,0.00022465,6]
[366481524,1750282239939,-460.0,0.00022465,6]
[366481525,1750282239949,-460.0,0.00022465,6]
[366481526,1750282239959,-460.0,0.00022465,6]
[366481527,1750282239969,-594.79258161,0.00022465,6]
[366481528,1750282239978,-460.0,0.00022465,6]
[366481529,1750282239988,-460.0,0.00022465,6]
[366481530,1750282239997,-460.0,0.00022465,6]
[366481531,1750282240006,-534.70975956,0.00022465,6]
[366481532,1750282240015,-460.0,0.00022465,6]
[366481533,1750282240025,-460.0,0.00022465,6]
[366481534,1750282240034,-460.0,0.00022465,6]
[366481535,1750282240044,-460.0,0.00022465,6]
[366481536,1750282240053,-460.0,0.00022465,6]
[366481537,1750282240062,-151.83135684,0.00022465,6]
[366481538,1750282240071,-420.0,0.00022465,6]
[366481539,1750282240081,-460.0,0.00022465,6]
[366481540,1750282240092,-420.0,0.00022465,6]
[366481541,1750282240101,-500.0,0.00022465,6]
[366481542,1750282240110,-634.07,0.00022465,6]
[366481544,1750282240119,-527.74,0.00022465,6]